[Event "Early-Titled-Tuesday-Blitz-July-09-2024"]
[Site "Chess.com"]
[Date "2024.07.09"]
[Round "3"]
[White "twofoxniel"]
[Black "Bkmzzzzz"]
[Result "1/2-1/2"]
[WhiteElo "2636"]
[BlackElo "2428"]
[TimeControl "180+1"]
[EndTime "8:29:50 PDT"]
[Termination "Game drawn by repetition"]

1. e4 {[%clk 0:03:00.9]} 1... d6 {[%clk 0:02:59]} 2. d4 {[%clk 0:03:00.9]} 2...
Nf6 {[%clk 0:02:52.5]} 3. Nc3 {[%clk 0:03:01]} 3... e5 {[%clk 0:02:51.1]} 4. Nf3
{[%clk 0:03:00.1]} 4... Nbd7 {[%clk 0:02:50.1]} 5. Bc4 {[%clk 0:02:59.5]} 5...
Be7 {[%clk 0:02:50.5]} 6. O-O {[%clk 0:02:59.2]} 6... O-O {[%clk 0:02:51.1]} 7.
a4 {[%clk 0:02:59.7]} 7... c6 {[%clk 0:02:51.7]} 8. a5 {[%clk 0:02:59.1]} 8...
Rb8 {[%clk 0:02:51]} 9. Bg5 {[%clk 0:02:53.5]} 9... b5 {[%clk 0:02:50.5]} 10.
axb6 {[%clk 0:02:53.2]} 10... axb6 {[%clk 0:02:51.4]} 11. Re1 {[%clk 0:02:51.2]}
11... b5 {[%clk 0:02:51.7]} 12. Bb3 {[%clk 0:02:45.3]} 12... h6 {[%clk
0:02:46.8]} 13. Bh4 {[%clk 0:02:43.8]} 13... Qc7 {[%clk 0:02:47.2]} 14. Qe2
{[%clk 0:02:33.9]} 14... Re8 {[%clk 0:02:35.5]} 15. Rad1 {[%clk 0:02:31.4]}
15... exd4 {[%clk 0:02:35.1]} 16. Nxd4 {[%clk 0:02:27.6]} 16... Nc5 {[%clk
0:02:35.4]} 17. f3 {[%clk 0:01:55.7]} 17... Nxb3 {[%clk 0:01:55.6]} 18. Nxb3
{[%clk 0:01:55.5]} 18... Nd7 {[%clk 0:01:42.7]} 19. Bxe7 {[%clk 0:01:53.6]}
19... Rxe7 {[%clk 0:01:42.9]} 20. Qd2 {[%clk 0:01:53.9]} 20... Re6 {[%clk
0:01:34.5]} 21. Nd4 {[%clk 0:01:54.1]} 21... Rg6 {[%clk 0:01:34.6]} 22. Nf5
{[%clk 0:01:54.2]} 22... Ne5 {[%clk 0:01:32.6]} 23. Kh1 {[%clk 0:01:41.9]} 23...
Bxf5 {[%clk 0:01:30.8]} 24. exf5 {[%clk 0:01:41.7]} 24... Rf6 {[%clk 0:01:31.3]}
25. Ne4 {[%clk 0:01:34.4]} 25... Rxf5 {[%clk 0:01:30.7]} 26. Nxd6 {[%clk
0:01:34.7]} 26... Rh5 {[%clk 0:01:27.7]} 27. h3 {[%clk 0:01:12.8]} 27... Rd8
{[%clk 0:01:22.4]} 28. Qb4 {[%clk 0:00:57.8]} 28... Ng6 {[%clk 0:01:06.9]} 29.
Ne4 {[%clk 0:00:52.4]} 29... Rhd5 {[%clk 0:01:07.3]} 30. Rxd5 {[%clk 0:00:51.9]}
30... Rxd5 {[%clk 0:01:08]} 31. c4 {[%clk 0:00:51.9]} 31... Rd4 {[%clk
0:01:06.5]} 32. b3 {[%clk 0:00:48.9]} 32... bxc4 {[%clk 0:01:02.7]} 33. bxc4
{[%clk 0:00:49.8]} 33... Nf4 {[%clk 0:01:03.2]} 34. Qc5 {[%clk 0:00:48.7]} 34...
Rd8 {[%clk 0:00:52.4]} 35. Qf5 {[%clk 0:00:48.4]} 35... Rd4 {[%clk 0:00:45.1]}
36. c5 {[%clk 0:00:46]} 36... Rd5 {[%clk 0:00:44.7]} 37. Qg4 {[%clk 0:00:45.9]}
37... Kh7 {[%clk 0:00:42.7]} 38. Qg3 {[%clk 0:00:44.6]} 38... Ne6 {[%clk
0:00:37.3]} 39. Qxc7 {[%clk 0:00:42.8]} 39... Nxc7 {[%clk 0:00:38.2]} 40. Rb1
{[%clk 0:00:42.3]} 40... Ne6 {[%clk 0:00:38.3]} 41. Rb6 {[%clk 0:00:42.3]} 41...
Nxc5 {[%clk 0:00:37.9]} 42. Rxc6 {[%clk 0:00:41.6]} 42... Nxe4 {[%clk
0:00:37.6]} 43. fxe4 {[%clk 0:00:42.5]} 43... Re5 {[%clk 0:00:38.3]} 44. Rc4
{[%clk 0:00:41.7]} 44... f5 {[%clk 0:00:37.5]} 45. exf5 {[%clk 0:00:41.5]} 45...
Rxf5 {[%clk 0:00:38.4]} 46. Kh2 {[%clk 0:00:42.4]} 46... Rf6 {[%clk 0:00:38.8]}
47. g4 {[%clk 0:00:42.8]} 47... Re6 {[%clk 0:00:39.3]} 48. Kg2 {[%clk
0:00:43.7]} 48... Rf6 {[%clk 0:00:39.6]} 49. Kg3 {[%clk 0:00:44]} 49... Ra6
{[%clk 0:00:40.2]} 50. Rc3 {[%clk 0:00:43.8]} 50... Ra5 {[%clk 0:00:40.5]} 51.
h4 {[%clk 0:00:44.2]} 51... Rb5 {[%clk 0:00:40.5]} 52. Rd3 {[%clk 0:00:43.6]}
52... Ra5 {[%clk 0:00:40.8]} 53. Rf3 {[%clk 0:00:43.2]} 53... Rb5 {[%clk
0:00:41.1]} 54. Rf5 {[%clk 0:00:41.9]} 54... Rb3+ {[%clk 0:00:40.3]} 55. Kf4
{[%clk 0:00:42]} 55... Rb4+ {[%clk 0:00:40.9]} 56. Kf3 {[%clk 0:00:42.6]} 56...
Rb3+ {[%clk 0:00:41.2]} 57. Kf4 {[%clk 0:00:43]} 57... Rb4+ {[%clk 0:00:41.8]}
58. Kg3 {[%clk 0:00:43.5]} 58... Rb3+ {[%clk 0:00:42.3]} 59. Rf3 {[%clk
0:00:44.2]} 59... Rb5 {[%clk 0:00:42.9]} 60. h5 {[%clk 0:00:41.2]} 60... Rb4
{[%clk 0:00:42.9]} 61. Rf5 {[%clk 0:00:41.1]} 61... Ra4 {[%clk 0:00:42.8]} 62.
Re5 {[%clk 0:00:41.3]} 62... Rb4 {[%clk 0:00:42.9]} 63. Rd5 {[%clk 0:00:41.4]}
63... Ra4 {[%clk 0:00:42.9]} 64. Rd8 {[%clk 0:00:41.4]} 64... Rb4 {[%clk
0:00:42.9]} 65. Kh4 {[%clk 0:00:41.3]} 65... Ra4 {[%clk 0:00:42.5]} 66. Rd6
{[%clk 0:00:41.5]} 66... Rb4 {[%clk 0:00:42.6]} 67. Rg6 {[%clk 0:00:42.1]} 67...
Ra4 {[%clk 0:00:42.5]} 68. Kg3 {[%clk 0:00:42.6]} 68... Ra3+ {[%clk 0:00:42.5]}
69. Kh4 {[%clk 0:00:43]} 69... Ra4 {[%clk 0:00:43.2]} 70. Kg3 {[%clk 0:00:43.4]}
70... Ra3+ {[%clk 0:00:43.6]} 71. Kh4 {[%clk 0:00:43.9]} 71... Ra4 {[%clk
0:00:44.2]} 1/2-1/2

[Event "Early-Titled-Tuesday-Blitz-July-09-2024"]
[Site "Chess.com"]
[Date "2024.07.09"]
[Round "3"]
[White "FXDon77"]
[Black "FoxOnTheRun97"]
[Result "1-0"]
[WhiteElo "2862"]
[BlackElo "2625"]
[TimeControl "180+1"]
[EndTime "8:29:53 PDT"]
[Termination "FXDon77 won by resignation"]

1. e4 {[%clk 0:02:58.6]} 1... c6 {[%clk 0:03:00]} 2. d4 {[%clk 0:02:58.2]} 2...
d5 {[%clk 0:03:00]} 3. f3 {[%clk 0:02:58.5]} 3... g6 {[%clk 0:02:52.2]} 4. Nc3
{[%clk 0:02:56.4]} 4... Bg7 {[%clk 0:02:51.3]} 5. e5 {[%clk 0:02:55]} 5... h5
{[%clk 0:02:32.5]} 6. Be3 {[%clk 0:02:52]} 6... Nh6 {[%clk 0:02:28.9]} 7. Bf2
{[%clk 0:02:48]} 7... b5 {[%clk 0:02:11.2]} 8. Bd3 {[%clk 0:02:43.1]} 8... Bf5
{[%clk 0:02:05.4]} 9. Bxf5 {[%clk 0:02:36.5]} 9... Nxf5 {[%clk 0:02:06.3]} 10.
g4 {[%clk 0:02:27.7]} 10... hxg4 {[%clk 0:02:04.8]} 11. fxg4 {[%clk 0:02:28.3]}
11... Nh4 {[%clk 0:02:00.6]} 12. Nf3 {[%clk 0:02:25.7]} 12... Nxf3+ {[%clk
0:01:45.1]} 13. Qxf3 {[%clk 0:02:26.6]} 13... e6 {[%clk 0:01:44.8]} 14. h4
{[%clk 0:02:21.2]} 14... Nd7 {[%clk 0:01:38.9]} 15. h5 {[%clk 0:02:16.4]} 15...
gxh5 {[%clk 0:01:35.5]} 16. gxh5 {[%clk 0:02:10.7]} 16... Bh6 {[%clk 0:01:23.3]}
17. Be3 {[%clk 0:02:01.7]} 17... b4 {[%clk 0:01:11.8]} 18. Na4 {[%clk
0:01:52.2]} 18... c5 {[%clk 0:01:05.3]} 19. Nxc5 {[%clk 0:01:40.8]} 19... Nxc5
{[%clk 0:01:03.7]} 20. dxc5 {[%clk 0:01:41.7]} 20... Bg7 {[%clk 0:00:36.9]} 21.
Qg3 {[%clk 0:01:34]} 21... Bf8 {[%clk 0:00:28.5]} 22. O-O-O {[%clk 0:01:31.5]}
22... Rc8 {[%clk 0:00:28.1]} 23. Kb1 {[%clk 0:01:28.9]} 23... Qc7 {[%clk
0:00:18.6]} 24. h6 {[%clk 0:01:19.1]} 24... Bxc5 {[%clk 0:00:17.7]} 25. Qg7
{[%clk 0:01:06.2]} 25... Rf8 {[%clk 0:00:10.1]} 26. h7 {[%clk 0:00:57.2]} 26...
Bxe3 {[%clk 0:00:07.7]} 27. Qxf8+ {[%clk 0:00:56.8]} 27... Kxf8 {[%clk
0:00:08.4]} 28. h8=Q+ {[%clk 0:00:57.1]} 28... Ke7 {[%clk 0:00:08.8]} 29. Qf6+
{[%clk 0:00:57.3]} 29... Kd7 {[%clk 0:00:09.3]} 30. Qxf7+ {[%clk 0:00:57.2]}
30... Kc6 {[%clk 0:00:09.8]} 31. Qxe6+ {[%clk 0:00:54.7]} 31... Kb5 {[%clk
0:00:08.8]} 32. Rxd5+ {[%clk 0:00:53.2]} 32... Bc5 {[%clk 0:00:08.5]} 33. Qd7+
{[%clk 0:00:48.4]} 33... Qxd7 {[%clk 0:00:08]} 34. Rxd7 {[%clk 0:00:49.1]} 34...
Re8 {[%clk 0:00:07.9]} 35. Re1 {[%clk 0:00:47.6]} 35... Kc6 {[%clk 0:00:07.9]}
36. e6 {[%clk 0:00:47.5]} 36... Rxe6 {[%clk 0:00:07]} 37. Rxe6+ {[%clk
0:00:47.3]} 37... Kxd7 {[%clk 0:00:07.7]} 38. Re4 {[%clk 0:00:47.8]} 38... Kc6
{[%clk 0:00:08]} 39. b3 {[%clk 0:00:45.4]} 39... Kd5 {[%clk 0:00:08.3]} 40. Rc4
{[%clk 0:00:45.7]} 40... Kd6 {[%clk 0:00:07.3]} 41. a3 {[%clk 0:00:40.6]} 41...
bxa3 {[%clk 0:00:06.7]} 42. Ka2 {[%clk 0:00:41.2]} 42... Kd5 {[%clk 0:00:06.5]}
43. Ra4 {[%clk 0:00:26.5]} 43... Kc6 {[%clk 0:00:05.8]} 44. b4 {[%clk
0:00:25.1]} 44... Kb5 {[%clk 0:00:04.4]} 45. bxc5 {[%clk 0:00:23.7]} 1-0

[Event "Early-Titled-Tuesday-Blitz-July-09-2024"]
[Site "Chess.com"]
[Date "2024.07.09"]
[Round "3"]
[White "SirStrateg"]
[Black "ImportedItalianMaple"]
[Result "0-1"]
[WhiteElo "2671"]
[BlackElo "2480"]
[TimeControl "180+1"]
[EndTime "8:29:56 PDT"]
[Termination "ImportedItalianMaple won by resignation"]

1. d4 {[%clk 0:03:00.9]} 1... g6 {[%clk 0:02:59.9]} 2. Bg5 {[%clk 0:02:58.1]}
2... Bg7 {[%clk 0:02:58.8]} 3. c3 {[%clk 0:02:58.1]} 3... d6 {[%clk 0:02:50.4]}
4. Nf3 {[%clk 0:02:55.8]} 4... h6 {[%clk 0:02:49.5]} 5. Bh4 {[%clk 0:02:56]}
5... b6 {[%clk 0:02:49.5]} 6. Nbd2 {[%clk 0:02:55]} 6... Bb7 {[%clk 0:02:49.2]}
7. e4 {[%clk 0:02:54.9]} 7... g5 {[%clk 0:02:49.1]} 8. Bg3 {[%clk 0:02:54.7]}
8... Nd7 {[%clk 0:02:48.3]} 9. Bd3 {[%clk 0:02:41.9]} 9... e5 {[%clk 0:02:45.9]}
10. h4 {[%clk 0:02:35.7]} 10... g4 {[%clk 0:02:45.1]} 11. Nh2 {[%clk 0:02:34.9]}
11... h5 {[%clk 0:02:44.9]} 12. d5 {[%clk 0:02:34.2]} 12... f5 {[%clk 0:02:42]}
13. exf5 {[%clk 0:02:30.7]} 13... Bxd5 {[%clk 0:02:42.6]} 14. Be4 {[%clk
0:02:26.3]} 14... Ngf6 {[%clk 0:02:33.7]} 15. Bxd5 {[%clk 0:02:26.3]} 15... Nxd5
{[%clk 0:02:34.6]} 16. Ne4 {[%clk 0:02:13.3]} 16... Nf4 {[%clk 0:02:27.4]} 17.
Ng5 {[%clk 0:02:04.6]} 17... Qf6 {[%clk 0:02:03.6]} 18. Bxf4 {[%clk 0:02:01.7]}
18... exf4 {[%clk 0:02:03.9]} 19. Ne6 {[%clk 0:01:55.2]} 19... Nc5 {[%clk
0:02:01.6]} 20. Nxc7+ {[%clk 0:01:53]} 20... Kd7 {[%clk 0:02:00.7]} 21. Nxa8
{[%clk 0:01:52.8]} 21... Re8+ {[%clk 0:02:00.8]} 22. Kd2 {[%clk 0:01:42]} 22...
Qxf5 {[%clk 0:01:56.2]} 23. Re1 {[%clk 0:01:23.6]} 23... Rxa8 {[%clk 0:01:49.9]}
24. Qe2 {[%clk 0:01:12.4]} 24... Be5 {[%clk 0:01:03.4]} 25. f3 {[%clk
0:01:07.9]} 25... g3 {[%clk 0:01:03.1]} 26. Nf1 {[%clk 0:01:07.4]} 26... Re8
{[%clk 0:01:03.7]} 27. Qb5+ {[%clk 0:01:04.6]} 27... Kd8 {[%clk 0:01:04.1]} 28.
Rad1 {[%clk 0:00:57.6]} 28... Qe6 {[%clk 0:00:55]} 29. Kc2 {[%clk 0:00:44.5]}
29... Kc7 {[%clk 0:00:43.3]} 30. Nd2 {[%clk 0:00:38.6]} 30... a6 {[%clk
0:00:43.4]} 31. Qc4 {[%clk 0:00:37.3]} 31... d5 {[%clk 0:00:36.3]} 32. Qf1
{[%clk 0:00:21.6]} 32... Qf5+ {[%clk 0:00:36.6]} 33. Ne4 {[%clk 0:00:18.7]}
33... dxe4 {[%clk 0:00:37.1]} 34. fxe4 {[%clk 0:00:17.1]} 34... Nxe4 {[%clk
0:00:34.8]} 35. Qd3 {[%clk 0:00:17.1]} 35... Nd6 {[%clk 0:00:29.7]} 36. a4
{[%clk 0:00:12.4]} 36... f3 {[%clk 0:00:24.9]} 37. gxf3 {[%clk 0:00:12.3]} 37...
g2 {[%clk 0:00:19.6]} 38. Qxf5 {[%clk 0:00:11.1]} 38... Nxf5 {[%clk 0:00:19.6]}
39. f4 {[%clk 0:00:11.6]} 39... Bxf4 {[%clk 0:00:17]} 40. Rxe8 {[%clk
0:00:11.4]} 40... Ne3+ {[%clk 0:00:17.7]} 41. Rxe3 {[%clk 0:00:02.7]} 41... Bxe3
{[%clk 0:00:18.6]} 42. Kd3 {[%clk 0:00:02.1]} 42... g1=Q {[%clk 0:00:18.9]} 43.
Rxg1 {[%clk 0:00:02.6]} 43... Bxg1 {[%clk 0:00:19.8]} 44. Ke4 {[%clk 0:00:03.3]}
44... Bf2 {[%clk 0:00:20.2]} 45. Kf5 {[%clk 0:00:03.4]} 45... Bxh4 {[%clk
0:00:20.9]} 46. Kg6 {[%clk 0:00:04.1]} 46... Be1 {[%clk 0:00:20.2]} 47. Kxh5
{[%clk 0:00:04.4]} 47... Kc6 {[%clk 0:00:21]} 48. Kg4 {[%clk 0:00:04.8]} 48...
Kc5 {[%clk 0:00:21.7]} 49. Kf3 {[%clk 0:00:05.4]} 49... Kc4 {[%clk 0:00:22.4]}
50. Ke2 {[%clk 0:00:06]} 50... Bxc3 {[%clk 0:00:21.5]} 51. bxc3 {[%clk 0:00:06]}
51... Kxc3 {[%clk 0:00:22.4]} 0-1

[Event "Early-Titled-Tuesday-Blitz-July-09-2024"]
[Site "Chess.com"]
[Date "2024.07.09"]
[Round "3"]
[White "chessmachine14"]
[Black "IsuruAlahakoon"]
[Result "0-1"]
[WhiteElo "2234"]
[BlackElo "2435"]
[TimeControl "180+1"]
[EndTime "8:29:58 PDT"]
[Termination "IsuruAlahakoon won on time"]

1. e4 {[%clk 0:02:57.7]} 1... d5 {[%clk 0:02:59.7]} 2. exd5 {[%clk 0:02:57.3]}
2... Qxd5 {[%clk 0:03:00.6]} 3. Nc3 {[%clk 0:02:57.7]} 3... Qa5 {[%clk 0:03:01]}
4. d4 {[%clk 0:02:57.6]} 4... Nf6 {[%clk 0:03:01.5]} 5. Nf3 {[%clk 0:02:56.9]}
5... Bg4 {[%clk 0:03:01.9]} 6. h3 {[%clk 0:02:57.3]} 6... Bh5 {[%clk 0:03:02.5]}
7. g4 {[%clk 0:02:57.7]} 7... Bg6 {[%clk 0:03:03.2]} 8. Ne5 {[%clk 0:02:58.4]}
8... e6 {[%clk 0:03:03.8]} 9. Bg2 {[%clk 0:02:58]} 9... c6 {[%clk 0:03:03.6]}
10. h4 {[%clk 0:02:49.3]} 10... Be4 {[%clk 0:03:03.5]} 11. f3 {[%clk 0:02:38.6]}
11... Bd5 {[%clk 0:03:02.9]} 12. Bd2 {[%clk 0:02:20.4]} 12... Bb4 {[%clk
0:03:02.6]} 13. h5 {[%clk 0:02:15.9]} 13... Nbd7 {[%clk 0:02:53.5]} 14. Nd3
{[%clk 0:02:09.2]} 14... Bxc3 {[%clk 0:02:48.2]} 15. Bxc3 {[%clk 0:02:09]} 15...
Qc7 {[%clk 0:02:47.1]} 16. Ne5 {[%clk 0:02:02.5]} 16... Nxe5 {[%clk 0:02:37.7]}
17. dxe5 {[%clk 0:02:02.3]} 17... Nd7 {[%clk 0:02:38.3]} 18. Qe2 {[%clk
0:01:55]} 18... O-O-O {[%clk 0:02:31.5]} 19. O-O-O {[%clk 0:01:53.8]} 19... Nb6
{[%clk 0:02:30.4]} 20. b3 {[%clk 0:01:47.2]} 20... c5 {[%clk 0:02:29.6]} 21. Kb1
{[%clk 0:01:37.3]} 21... c4 {[%clk 0:02:27.7]} 22. Bf1 {[%clk 0:01:19.8]} 22...
Kb8 {[%clk 0:02:26.4]} 23. Ba5 {[%clk 0:01:19.3]} 23... Rc8 {[%clk 0:02:18]} 24.
Bb4 {[%clk 0:01:12.7]} 24... Qc6 {[%clk 0:02:14]} 25. Bg2 {[%clk 0:01:09.9]}
25... Ka8 {[%clk 0:02:06.5]} 26. Rhg1 {[%clk 0:00:46.1]} 26... Qb5 {[%clk
0:02:05.8]} 27. Bd6 {[%clk 0:00:44]} 27... Na4 {[%clk 0:02:05.6]} 28. Qe3 {[%clk
0:00:38.2]} 28... cxb3 {[%clk 0:01:55.3]} 29. cxb3 {[%clk 0:00:35.8]} 29... Nc3+
{[%clk 0:01:55.3]} 30. Kb2 {[%clk 0:00:32.7]} 30... Nxd1+ {[%clk 0:01:51.6]} 31.
Rxd1 {[%clk 0:00:33.6]} 31... Rc6 {[%clk 0:01:44.1]} 32. Bf1 {[%clk 0:00:30.7]}
32... Qa5 {[%clk 0:01:36.3]} 33. Qd2 {[%clk 0:00:29.7]} 33... Qxd2+ {[%clk
0:01:30.1]} 34. Rxd2 {[%clk 0:00:29.4]} 34... Rhc8 {[%clk 0:01:30.4]} 35. f4
{[%clk 0:00:29.1]} 35... Rc1 {[%clk 0:01:27.5]} 36. Bb5 {[%clk 0:00:28.7]} 36...
Be4 {[%clk 0:01:20.8]} 37. Bc4 {[%clk 0:00:15.2]} 37... Rg1 {[%clk 0:01:15]} 38.
Rd4 {[%clk 0:00:14.9]} 38... Bc6 {[%clk 0:01:08.2]} 39. f5 {[%clk 0:00:12.3]}
39... Rg2+ {[%clk 0:01:01.1]} 40. Ka3 {[%clk 0:00:11.9]} 40... b5 {[%clk
0:00:57.7]} 41. fxe6 {[%clk 0:00:08.7]} 41... bxc4 {[%clk 0:00:56]} 42. exf7
{[%clk 0:00:09.1]} 42... Rf2 {[%clk 0:00:50.1]} 43. e6 {[%clk 0:00:09.5]} 43...
c3 {[%clk 0:00:44.6]} 44. Bf4 {[%clk 0:00:06.5]} 44... c2 {[%clk 0:00:42.5]} 45.
Bc1 {[%clk 0:00:01]} 45... Rf1 {[%clk 0:00:28.1]} 0-1

[Event "Early-Titled-Tuesday-Blitz-July-09-2024"]
[Site "Chess.com"]
[Date "2024.07.09"]
[Round "3"]
[White "MarijaKuznecova"]
[Black "2400FM"]
[Result "1-0"]
[WhiteElo "2423"]
[BlackElo "2107"]
[TimeControl "180+1"]
[EndTime "8:29:58 PDT"]
[Termination "MarijaKuznecova won by resignation"]

1. e4 {[%clk 0:03:00.9]} 1... c5 {[%clk 0:02:58.6]} 2. Nf3 {[%clk 0:03:01.1]}
2... d6 {[%clk 0:02:58.2]} 3. d4 {[%clk 0:03:01.6]} 3... cxd4 {[%clk 0:02:58.2]}
4. Nxd4 {[%clk 0:03:02.5]} 4... Nf6 {[%clk 0:02:58.1]} 5. Nc3 {[%clk 0:03:03.1]}
5... a6 {[%clk 0:02:57.8]} 6. Be3 {[%clk 0:03:03.2]} 6... e5 {[%clk 0:02:56.1]}
7. Nb3 {[%clk 0:03:03.1]} 7... Be6 {[%clk 0:02:40.9]} 8. f3 {[%clk 0:03:02.5]}
8... h5 {[%clk 0:02:36.3]} 9. Qd2 {[%clk 0:03:01.9]} 9... Nbd7 {[%clk
0:02:30.5]} 10. Nd5 {[%clk 0:02:51]} 10... Bxd5 {[%clk 0:02:26.3]} 11. exd5
{[%clk 0:02:51.9]} 11... g6 {[%clk 0:02:24.2]} 12. Na5 {[%clk 0:02:49.8]} 12...
Qc7 {[%clk 0:02:14.6]} 13. c4 {[%clk 0:02:49.4]} 13... Bg7 {[%clk 0:02:00.1]}
14. Bd3 {[%clk 0:02:38.4]} 14... O-O {[%clk 0:01:59.1]} 15. O-O {[%clk
0:02:37.4]} 15... e4 {[%clk 0:01:56.8]} 16. fxe4 {[%clk 0:02:35.7]} 16... Ne5
{[%clk 0:01:56.6]} 17. b4 {[%clk 0:02:07.7]} 17... Nfg4 {[%clk 0:01:25.7]} 18.
Rac1 {[%clk 0:01:47.9]} 18... Nxe3 {[%clk 0:01:20.3]} 19. Qxe3 {[%clk
0:01:48.8]} 19... Ng4 {[%clk 0:01:19.6]} 20. Qe1 {[%clk 0:01:30.2]} 20... Rae8
{[%clk 0:01:02.6]} 21. h3 {[%clk 0:01:21.1]} 21... Bd4+ {[%clk 0:00:59.1]} 22.
Kh1 {[%clk 0:01:20.4]} 22... Ne3 {[%clk 0:00:56.7]} 23. Rf3 {[%clk 0:01:16.9]}
23... Nf5 {[%clk 0:00:50.6]} 24. Qd2 {[%clk 0:00:56.1]} 24... Ng7 {[%clk
0:00:37.4]} 25. Rcf1 {[%clk 0:00:52.3]} 25... Re7 {[%clk 0:00:32.8]} 26. Nb3
{[%clk 0:00:51.6]} 26... Be5 {[%clk 0:00:32.4]} 27. c5 {[%clk 0:00:50]} 27... h4
{[%clk 0:00:31.8]} 28. Qg5 {[%clk 0:00:45]} 28... Nh5 {[%clk 0:00:22.2]} 29.
Qxh4 {[%clk 0:00:44.7]} 29... Kg7 {[%clk 0:00:22.2]} 30. g4 {[%clk 0:00:36.3]}
30... Rh8 {[%clk 0:00:14.1]} 31. gxh5 {[%clk 0:00:34.7]} 31... Rxh5 {[%clk
0:00:14.2]} 32. Qg4 {[%clk 0:00:30.8]} 32... b6 {[%clk 0:00:11.3]} 33. c6 {[%clk
0:00:30.4]} 33... b5 {[%clk 0:00:10.9]} 34. Rg1 {[%clk 0:00:24.3]} 34... Re8
{[%clk 0:00:10.1]} 35. Qxh5 {[%clk 0:00:24]} 35... Rh8 {[%clk 0:00:09.8]} 36.
Qg4 {[%clk 0:00:23.7]} 36... Qb6 {[%clk 0:00:10]} 37. Nd2 {[%clk 0:00:22.1]}
37... Qd4 {[%clk 0:00:09.5]} 38. Rgf1 {[%clk 0:00:22.3]} 38... f6 {[%clk
0:00:08.9]} 39. c7 {[%clk 0:00:21.8]} 39... Qb2 {[%clk 0:00:07.9]} 40. c8=Q
{[%clk 0:00:20.1]} 40... Rxc8 {[%clk 0:00:07.1]} 41. Qxc8 {[%clk 0:00:21]} 41...
Qxd2 {[%clk 0:00:08]} 42. Qc2 {[%clk 0:00:19.7]} 42... Qh6 {[%clk 0:00:07.5]}
43. Qg2 {[%clk 0:00:18.2]} 43... Qe3 {[%clk 0:00:07.4]} 44. Rxe3 {[%clk
0:00:17.9]} 1-0

[Event "Early-Titled-Tuesday-Blitz-July-09-2024"]
[Site "Chess.com"]
[Date "2024.07.09"]
[Round "3"]
[White "Orest_Vovk"]
[Black "MrEscacs"]
[Result "1-0"]
[WhiteElo "2541"]
[BlackElo "2197"]
[TimeControl "180+1"]
[EndTime "8:29:59 PDT"]
[Termination "Orest_Vovk won by resignation"]

1. e4 {[%clk 0:03:00.9]} 1... Nf6 {[%clk 0:03:00]} 2. e5 {[%clk 0:02:59.5]} 2...
Nd5 {[%clk 0:03:00.3]} 3. g4 {[%clk 0:02:59.7]} 3... d6 {[%clk 0:02:57.1]} 4. d4
{[%clk 0:02:55.4]} 4... g6 {[%clk 0:02:52.4]} 5. Bg2 {[%clk 0:02:53.8]} 5... c6
{[%clk 0:02:46.1]} 6. h3 {[%clk 0:02:40.4]} 6... dxe5 {[%clk 0:02:45]} 7. dxe5
{[%clk 0:02:39.2]} 7... Bg7 {[%clk 0:02:40]} 8. f4 {[%clk 0:02:37.2]} 8... O-O
{[%clk 0:02:39]} 9. Nf3 {[%clk 0:02:35.9]} 9... f6 {[%clk 0:02:34.4]} 10. O-O
{[%clk 0:02:22.9]} 10... fxe5 {[%clk 0:02:27.4]} 11. Nxe5 {[%clk 0:02:19.7]}
11... Be6 {[%clk 0:02:09.1]} 12. c4 {[%clk 0:02:06.3]} 12... Nb6 {[%clk
0:01:57.6]} 13. Qxd8 {[%clk 0:01:49.4]} 13... Rxd8 {[%clk 0:01:56.9]} 14. b3
{[%clk 0:01:48.5]} 14... N8d7 {[%clk 0:01:52.1]} 15. Bb2 {[%clk 0:01:42.5]}
15... Nxe5 {[%clk 0:01:51.6]} 16. Bxe5 {[%clk 0:01:36.4]} 16... Bxe5 {[%clk
0:01:49.4]} 17. fxe5 {[%clk 0:01:37.3]} 17... Rd3 {[%clk 0:01:41.8]} 18. Na3
{[%clk 0:01:30.3]} 18... Nd7 {[%clk 0:01:36.7]} 19. Rad1 {[%clk 0:01:24.8]}
19... Re3 {[%clk 0:01:26.4]} 20. Rfe1 {[%clk 0:00:51.5]} 20... Rxe1+ {[%clk
0:01:23.5]} 21. Rxe1 {[%clk 0:00:52.4]} 21... a5 {[%clk 0:01:03.8]} 22. Nc2
{[%clk 0:00:51.5]} 22... Kg7 {[%clk 0:00:28.9]} 23. Nd4 {[%clk 0:00:50.6]} 23...
Bg8 {[%clk 0:00:27.4]} 24. e6 {[%clk 0:00:40.9]} 24... Nc5 {[%clk 0:00:20.8]}
25. Re5 {[%clk 0:00:32.8]} 25... Na6 {[%clk 0:00:18]} 26. Rxa5 {[%clk
0:00:20.8]} 26... Rd8 {[%clk 0:00:18.2]} 27. Nxc6 {[%clk 0:00:17.7]} 27... Rd1+
{[%clk 0:00:15.1]} 28. Kh2 {[%clk 0:00:17.5]} 28... Bxe6 {[%clk 0:00:12.2]} 29.
Nxe7 {[%clk 0:00:13]} 29... Rd2 {[%clk 0:00:11.4]} 30. Nd5 {[%clk 0:00:09.1]}
30... h5 {[%clk 0:00:08]} 31. gxh5 {[%clk 0:00:08.4]} 31... gxh5 {[%clk
0:00:08.5]} 32. Rb5 {[%clk 0:00:07.7]} 32... Rxa2 {[%clk 0:00:04.9]} 33. Rxb7+
{[%clk 0:00:07.9]} 33... Kg6 {[%clk 0:00:05.4]} 34. Rb6 {[%clk 0:00:08.1]} 34...
Kf7 {[%clk 0:00:05.1]} 35. Nf4 {[%clk 0:00:05.4]} 35... Nc5 {[%clk 0:00:04.9]}
36. Nxe6 {[%clk 0:00:04.6]} 36... Nxe6 {[%clk 0:00:04.8]} 37. Kg3 {[%clk
0:00:04.8]} 37... Re2 {[%clk 0:00:04.3]} 38. Bd5 {[%clk 0:00:04.1]} 38... Re3+
{[%clk 0:00:04.7]} 39. Kf2 {[%clk 0:00:04.2]} 39... Re5 {[%clk 0:00:04.6]} 40.
Rxe6 {[%clk 0:00:03.8]} 40... Rxe6 {[%clk 0:00:05]} 41. Bxe6+ {[%clk 0:00:04.7]}
41... Kxe6 {[%clk 0:00:05.7]} 42. Kf3 {[%clk 0:00:04.2]} 42... Kd6 {[%clk
0:00:06.6]} 43. Kf4 {[%clk 0:00:04.8]} 43... Kc5 {[%clk 0:00:07.1]} 44. Kg5
{[%clk 0:00:05.7]} 44... Kb4 {[%clk 0:00:07.5]} 45. Kxh5 {[%clk 0:00:06.6]} 1-0